Cogmind - Beta 16 @@@ ROGUE MODE // 2025.11.29 @ 14:13:36 Player: LightKnight Result: Self-destructed Performance ------------- Evolutions (2) 1000 Regions Visited (5) 1000 Robots Destroyed (34) 170 Value Destroyed (804) 804 Prototype IDs (44) 880 Alien Tech Used (0) 0 Bonus (508) 508 TOTAL SCORE: 4362 Bonus ------- Follower Combat Kills 208 Aligned with FarCom 300 Cogmind --------- Core Integrity 497/550 Matter 300/300 Energy 250/250 System Corruption 0% Temperature Cool (0) Movement Treading (158) Location -8/Materials Parts ------- > --- POWER (1) -------- Ion Engine > --- PROPULSION (3) --- Light Treads Armored Treads Advanced Treads > --- UTILITY (4) ------ Heat Sink High-capacity Storage Unit Structural Scanner Hardlight Generator > --- WEAPON (3) ------- Particle Gun Advanced Beam Rifle Beam Cannon > --- INVENTORY (20) --- Ion Engine Light Nuclear Core Light Treads Light Treads Light Treads Improved Treads Armored Treads Compact Wheel Cryofiber Web Improved Heat Sink Large Storage Unit Advanced Visual Processing Unit Spread Laser Spread Laser Beam Cannon Guided Plasma Cannon Assault Rifle EMP Blaster Rocket Launcher Axe Peak State ------------ > --- POWER ------------ Ion Engine > --- PROPULSION ------- Light Treads Armored Treads Advanced Treads > --- UTILITY ---------- Heat Sink High-capacity Storage Unit Structural Scanner Hardlight Generator > --- WEAPON ----------- Particle Gun Advanced Beam Rifle Beam Cannon > --- INVENTORY -------- Ion Engine Light Nuclear Core Light Treads Light Treads Improved Treads Compact Wheel Improved Heat Sink Large Storage Unit Advanced Visual Processing Unit EM Pulse Gun EM Pulse Gun Spread Laser Spread Laser Beam Cannon Guided Plasma Cannon Assault Rifle Light Cannon EMP Blaster Rocket Launcher Axe [Rating: 25] Favorites ----------- Power Ion Engine Engine Ion Engine Propulsion Light Treads Treads Light Treads Leg Aluminum Leg Utility Large Storage Unit Device Structural Scanner Storage Large Storage Unit Protection Light Armor Plating Weapon Particle Gun Energy Gun Particle Gun Energy Cannon Beam Cannon Ballistic Gun Assault Rifle Ballistic Cannon Light Cannon Launcher Rocket Launcher Special Melee Weapon Datajack Build | -11 -10 -10 -10 -9 -8 ------- Run | Yrd Mat Min Exi Min Mat Slots Evolved 4 | . . . . . 4 Power . | . . . . . . Propulsion 1 | . . . . . 1 Utility 2 | . . . . . 2 Weapon 1 | . . . . . 1 Parts Attached 24 | . 12 . 1 . 11 Power 2 | . 2 . . . . Engine 2 | . 2 . . . . Core . | . . . . . . Reactor . | . . . . . . Propulsion 6 | . 2 . . . 4 Treads 6 | . 2 . . . 4 Leg . | . . . . . . Wheel . | . . . . . . Hover . | . . . . . . Flight . | . . . . . . Utility 7 | . 4 . . . 3 Device 4 | . 3 . . . 1 Storage 2 | . 1 . . . 1 Processor . | . . . . . . Hackware . | . . . . . . Protection 1 | . . . . . 1 Artifact . | . . . . . . Weapon 9 | . 4 . 1 . 4 Energy Gun 3 | . 1 . . . 2 Energy Cannon 1 | . . . . . 1 Ballistic Gun 1 | . 1 . . . . Ballistic Cannon 1 | . 1 . . . . Launcher 2 | . 1 . . . 1 Special Weapon . | . . . . . . Impact Weapon . | . . . . . . Slashing Weapon . | . . . . . . Piercing Weapon . | . . . . . . Special Melee Weapon 1 | . . . 1 . . Unidentified Prototypes 1 | . . . . . 1 Parts Lost 3 | . . . . . 3 Power . | . . . . . . Propulsion 1 | . . . . . 1 Utility 1 | . . . . . 1 Weapon 1 | . . . . . 1 Highest Loss Streak 3 | . . . . . 3 To Critical Strikes . | . . . . . . Average Backups 14 | . 12 14 15 15 16 Power 1 | . 1 2 2 2 2 Propulsion 3 | . 3 3 3 3 3 Utility 2 | . 1 3 4 3 1 Weapon 5 | . 4 5 5 6 8 Tool/Special . | . . . . . . Unused Backups 26 | . 6 2 . . 18 Power 3 | . 1 . . . 2 Propulsion 8 | . 2 2 . . 4 Utility 4 | . 1 . . . 3 Weapon 11 | . 2 . . . 9 Tool/Special . | . . . . . . Average Slot Usage (%) 98 | . 97 100 100 100 98 Engine 12 | . 13 14 14 14 9 Treads 25 | . 23 28 28 28 26 Leg 1 | . 3 . . . . Device 15 | . 13 14 14 14 22 Storage 13 | . 14 14 14 14 9 Energy Gun 13 | . 7 14 14 14 21 Ballistic Gun 2 | . 6 . . . . Ballistic Cannon 9 | . 12 14 7 14 1 Special Melee Weapon 1 | . . . 6 . . Peak Build Rating 25 | . 9 9 10 10 25 Average Rating 10 | . 8 9 9 10 20 On Entrance 8 | 6 6 9 9 10 10 Avg Prop Armor Cover (%) . | . . . . . . Naked Turns . | . . . . . . Heaviest Build 62 | 13 32 32 32 32 62 Greatest Support 62 | 20 40 40 40 40 62 Greatest Overweight (x) 1 | . 1 . . . 1 Average Overweight (x) . | . . . . . . Largest Inventory Capacity 20 | . 15 15 15 15 20 Average Capacity 15 | . 14 15 15 15 17 Most Carried 20 | . 15 15 15 15 20 Average Carried 14 | . 12 14 14 14 16 Final Capacity 20 | 8 15 15 15 15 20 Final Carried 20 | 6 15 15 15 15 20 Class Distribution -------------------- 79% | Mutant 17% | Skirmisher Dominant Class ---------------- Mutant | -10/Materials Mutant | -10/Mines Mutant | -10/Exiles Mutant | -9/Mines Skirmisher | -8/Materials Resources | -11 -10 -10 -10 -9 -8 ----------- Run | Yrd Mat Min Exi Min Mat Matter Collected 1013 | 200 552 10 . 32 219 Remotely . | . . . . . . Salvage Created 700 | . 511 . . . 189 Parts 48 | . 39 . . . 9 Haulers Intercepted 3 | . 2 . . . 1 Recyclers Shooed 2 | . 2 . . . . Parts Field Recycled . | . . . . . . Retrieved Matter . | . . . . . . Parts Self-Destructed . | . . . . . . Prevented . | . . . . . . Parts Restored . | . . . . . . Kills | -11 -10 -10 -10 -9 -8 ------- Run | Yrd Mat Min Exi Min Mat Combat Hostiles Destroyed 25 | . 18 . . . 7 Guns 5 | . 4 . . . 1 Cannons 11 | . 11 . . . . AOE 9 | . 3 . . . 6 Classes Destroyed 7 | . 6 . . . 1 Worker 1 | . 1 . . . . Hauler 3 | . 2 . . . 1 Recycler 2 | . 1 . . . 1 Watcher 3 | . 2 . . . 1 Swarmer 13 | . 9 . . . 4 Grunt 11 | . 9 . . . 2 Sentry 1 | . . . . . 1 Best Kill Streak 7 | . 7 . . . 7 Combat Bots Only 7 | . 6 . . . 7 Max Kills in Single Turn 3 | . 2 . . . 3 Gunslinging . | . . . . . . Exploded 3 | . 2 . . . 3 Melee . | . . . . . . Uniques/NPCs Destroyed . | . . . . . . Combat | -11 -10 -10 -10 -9 -8 -------- Run | Yrd Mat Min Exi Min Mat Hostile Shots Fired 113 | . 71 . . . 42 Missed 25 | . 12 . . . 13 Hits 88 | . 59 . . . 29 Projectile 88 | . 59 . . . 29 Damage Taken 1048 | . 592 . . . 456 Core 173 | . 120 . . . 53 Absorbed by Shields 68 | . . . . . 68 Regen/Repaired (Parts) 182 | . 182 . . . . Core Remaining (%) 76 | 100 . . . 52 . Volleys Fired 83 | . 59 . . 2 22 Largest 3 | . 2 . . 2 3 Hottest 191 | . 95 . . 95 191 Shots Fired 162 | . 110 . . 4 48 Gun 82 | . 51 . . 2 29 Cannon 68 | . 55 . . 2 11 Launcher 12 | . 4 . . . 8 Special . | . . . . . . Kinetic 81 | . 76 . . 2 3 Thermal 69 | . 30 . . 2 37 Explosive 12 | . 4 . . . 8 Electromagnetic . | . . . . . . Robot Hit Streak 10 | . 10 . . 2 4 Robot Miss Streak 8 | . 4 . . 2 8 Penetration Max . | . . . . . . Secondary Targets . | . . . . . . Shots Hit Robots 87 | . 58 . 4 2 23 Core Hits 51 | . 29 . . . 22 Critical Kills . | . . . . . . Critical Parts Destroyed . | . . . . . . Critical Strikes 3 | . 3 . . . . Burn 2 | . 2 . . . . Blast 1 | . 1 . . . . Melee Attacks 5 | . . . 5 . . Impact . | . . . . . . Slashing . | . . . . . . Piercing . | . . . . . . Sneak Attacks 4 | . . . 4 . . Combat Hostiles . | . . . . . . Follow-up Attacks . | . . . . . . Damage Inflicted 2375 | . 1209 9 . 35 1122 Guns 615 | . 316 . . 13 286 Cannons 758 | . 619 . . 20 119 Explosions 967 | . 250 . . . 717 Melee . | . . . . . . Ramming 35 | . 24 9 . 2 . Kinetic 759 | . 724 . . 20 15 Thermal 614 | . 211 . . 13 390 Explosive 967 | . 250 . . . 717 Electromagnetic . | . . . . . . Impact . | . . . . . . Slashing . | . . . . . . Piercing . | . . . . . . Highest Corruption . | . . . . . . Average Corruption . | . . . . . . Corruption Purged . | . . . . . . Corruption Blocked . | . . . . . . Overload Shots . | . . . . . . Overflow Damage 49 | . 2 . . . 47 Projectiles . | . . . . . . Explosions 49 | . 2 . . . 47 Melee . | . . . . . . Knockbacks 4 | . 2 . . 1 1 Impact . | . . . . . . Kinetic 4 | . 2 . . 1 1 Secondary . | . . . . . . Self-Inflicted Damage 94 | . 40 . . . 54 Shots 4 | . 1 . . . 3 Rammed 8 | . 5 2 . 1 . Targets Rammed 9 | . 6 2 . 1 . Kicked 1 | . 1 . . . . Crushed . | . . . . . . Highest Temperature 342 | . 342 . . 18 225 Average Temperature 98 | . 122 . . 12 67 Received Heat Transfer 273 | . 147 . . . 126 Effects 1 | . 1 . . . . Energy Bleed 1 | . 1 . . . . Siege Activations . | . . . . . . Martial Activations . | . . . . . . Shielding Activations . | . . . . . . Robots Disrupted . | . . . . . . Combat Hostiles . | . . . . . . Robots Corrupted . | . . . . . . Combat Hostiles . | . . . . . . Parts Fried . | . . . . . . Impact Corruptions . | . . . . . . Robots Melted . | . . . . . . Combat Hostiles . | . . . . . . Parts Melted 1 | . 1 . . . . Heat Transferred 1429 | . 629 . . 37 763 Parts Sabotaged . | . . . . . . Parts Stolen . | . . . . . . Parts Stripped . | . . . . . . Power Chain Reactions . | . . . . . . Alert | -11 -10 -10 -10 -9 -8 ------- Run | Yrd Mat Min Exi Min Mat Maximum Alert Level 1 | . 1 . . . 1 Low Security (%) 81 | . 72 100 . 100 78 Level 1 18 | . 27 . . . 21 Level 2 . | . . . . . . Level 3 . | . . . . . . Level 4 . | . . . . . . Level 5 . | . . . . . . High Security . | . . . . . . Max Security . | . . . . . . Peak Influence 338 | . 338 111 . . 287 Initial 111 | . . 111 . . . Average 84 | . 122 31 . . 85 Influence Increases 1387 | . 694 6 . . 687 Destroy 0b10 Robot/C 620 | . 360 . . . 260 Destroy 0b10 Robot/NC 50 | . 30 . . . 20 Destroy Leader 154 | . 78 . . . 76 Allied During Kill 75 | . . . . . 75 Successful Hack 83 | . 29 6 . . 48 Select Force Hacks 60 | . 60 . . . . Disable Machine 60 | . 45 . . . 15 Anti-Garrison Action 150 | . . . . . 150 Destroy Structure 60 | . 17 . . . 43 Lose Combat Pursuer 75 | . 75 . . . . Influence Decreases 1120 | . 408 292 . . 420 Entered New Map 175 | . . 175 . . . Time Decay 705 | . 408 117 . . 180 Lost Part 30 | . . . . . 30 Lost Ally 60 | . . . . . 60 Purge Threat 150 | . . . . . 150 Squads Dispatched 8 | . 3 . . 1 4 Investigation 4 | . 2 . . . 2 Extermination . | . . . . . . Reinforcement 1 | . 1 . . . . Assault 3 | . . . . 1 2 Garrison . | . . . . . . Intercept . | . . . . . . Searches Triggered . | . . . . . . Construction Impeded . | . . . . . . Haulers Reinforced . | . . . . . . Active Scanning Responses . | . . . . . . Cargo Convoy Interrupts . | . . . . . . Stealth | -11 -10 -10 -10 -9 -8 --------- Run | Yrd Mat Min Exi Min Mat Distress Signals 2 | . 2 . . . . Communications Jammed . | . . . . . . Distress Signals . | . . . . . . Times Spotted 47 | . 30 . . . 17 Peak Tracking Total 9 | . 7 . . . 9 Tactical Retreats 4 | . 4 . . . . Traps | -11 -10 -10 -10 -9 -8 ------- Run | Yrd Mat Min Exi Min Mat Traps Triggered 3 | . 3 . . . . Indirectly . | . . . . . . Trap Hack Attempts . | . . . . . . Triggered . | . . . . . . Disarmed . | . . . . . . Reprogrammed . | . . . . . . Reused . | . . . . . . Traps Extracted . | . . . . . . Installed . | . . . . . . Triggered . | . . . . . . Machines | -11 -10 -10 -10 -9 -8 ---------- Run | Yrd Mat Min Exi Min Mat Machines Disabled 5 | . 3 . . . 2 Max in Single Turn 1 | . 1 . . . 1 Garrison Access 1 | . . . . . 1 Machines Repaired . | . . . . . . Machines Dismantled . | . . . . . . Machines Sabotaged . | . . . . . . Overloaded Fab Kills . | . . . . . . Hacking | -11 -10 -10 -10 -9 -8 --------- Run | Yrd Mat Min Exi Min Mat Machines Accessed 18 | . 10 1 2 . 5 Terminals 13 | . 7 1 . . 5 Fabricators . | . . . . . . Repair Stations 1 | . 1 . . . . Recycling Units 2 | . 2 . . . . Scanalyzers . | . . . . . . Garrison Access . | . . . . . . Total Hacks 53 | . 32 3 2 . 16 Successful 35 | . 23 1 2 . 9 Failed 18 | . 9 2 . . 7 Catastrophic 4 | . 1 . . . 3 Database Lockouts . | . . . . . . Manual 31 | . 17 3 1 . 10 Terminals 43 | . 24 3 . . 16 Fabricators . | . . . . . . Repair Stations 6 | . 6 . . . . Recycling Units 2 | . 2 . . . . Scanalyzers . | . . . . . . Garrison Access . | . . . . . . Terminal Hacks 13 | . 7 1 2 . 3 Record 1 | . . . 1 . . Robot Analysis 2 | . 1 1 . . . Prototype ID Bank 6 | . 5 . . . 1 Unreport Threat 1 | . . . . . 1 Locate Traps 2 | . 1 . . . 1 Proto ID Catalog 1 | . . . 1 . . Fabricator Hacks . | . . . . . . Repair Station Hacks 6 | . 6 . . . . Scan Component 3 | . 3 . . . . Repair 3 | . 3 . . . . Recycling Unit Hacks . | . . . . . . Scanalyzer . | . . . . . . Garrison Access Hacks . | . . . . . . Unauthorized Hacks 16 | . 10 . . . 6 Terminals 14 | . 8 . . . 6 Botnet 7 | . 3 . . . 4 Skim 7 | . 5 . . . 2 Fabricators . | . . . . . . Repair Stations . | . . . . . . Recycling Units 2 | . 2 . . . . Tunnel 2 | . 2 . . . . Scanalyzers . | . . . . . . Garrison Access . | . . . . . . Data Cores Recovered . | . . . . . . Used . | . . . . . . Hacking Detections 13 | . 8 1 . . 4 Full Trace Events 1 | . . . . . 1 Feedback Events . | . . . . . . Feedback Blocked . | . . . . . . Robot Schematics Acquired . | . . . . . . Robots Built . | . . . . . . Authchips . | . . . . . . Time . | . . . . . . Total Robot Build Rating . | . . . . . . Part Schematics Acquired . | . . . . . . Parts Built . | . . . . . . Authchips . | . . . . . . Time . | . . . . . . Total Part Build Rating . | . . . . . . Part Studies Acquired . | . . . . . . Parts Repaired 3 | . 3 . . . . Time 78 | . 78 . . . . Parts Recycled . | . . . . . . Recycled Matter . | . . . . . . Retrieved Matter . | . . . . . . Retrieved Components . | . . . . . . Parts Scanalyzed . | . . . . . . Part Schematics Acquired . | . . . . . . Parts Damaged . | . . . . . . Bothacking | -11 -10 -10 -10 -9 -8 ------------ Run | Yrd Mat Min Exi Min Mat Used RIF Installer . | . . . . . . Robots Hacked 4 | . . . 4 . . Non-combat 3 | . . . 3 . . Combat 1 | . . . 1 . . Robot Hacks Applied 4 | . . . 4 . . parse_system 4 | . . . 4 . . Relay Couplers Released 2 | . . . . . 2 Machine Destruction 2 | . . . . . 2 Fabnet Peak Effective % . | . . . . . . Robots Rewired . | . . . . . . Allies Hacked . | . . . . . . Hacks Repelled . | . . . . . . Allies | -11 -10 -10 -10 -9 -8 -------- Run | Yrd Mat Min Exi Min Mat Total Allies 4 | . . 3 . 1 . Largest Group 4 | . . 3 3 4 4 Highest-Rated Group 71 | . . 40 40 71 71 Highest-Rated Ally 31 | . . 16 16 31 31 Total Orders . | . . . . . . Ally Attacks 69 | . . . . . 69 Total Damage 835 | . . . . . 835 Kills 7 | . . . . . 7 Allies Corrupted . | . . . . . . Allies Melted . | . . . . . . Intel | -11 -10 -10 -10 -9 -8 ------- Run | Yrd Mat Min Exi Min Mat Active Infowar (turns) 2788 | . 898 435 539 286 630 Structural 1855 | . 694 . 245 286 630 Seismic 933 | . 204 435 294 . . Robot Analysis Total 2 | . 1 1 . . . Derelict Logs Recovered . | . . . . . . Drone Launches . | . . . . . . Drone Recoveries . | . . . . . . Exploration | -11 -10 -10 -10 -9 -8 ------------- Run | Yrd Mat Min Exi Min Mat Turns Passed 3204 | . 1278 471 539 286 630 Spaces Moved 1667 | 1 555 290 329 163 329 Core . | . . . . . . Treads 1538 | . 427 290 329 163 329 Legs 129 | 1 128 . . . . Wheels . | . . . . . . Hover . | . . . . . . Flight . | . . . . . . Fastest Speed 120 | 120 120 160 160 160 155 Average Speed 157 | 120 151 160 160 160 159 Slowest Speed 240 | 120 240 160 160 160 240 Overloaded Moves . | . . . . . . Propulsion Burnouts . | . . . . . . Robots Hopped . | . . . . . . Potential Cave-ins . | . . . . . . Cave-ins Triggered . | . . . . . . Exploration Rate (%) 46 | 1 98 45 71 33 33 Regions Visited 5 Branch Regions 3 Pre-discovered Areas 4 | . 3 . 1 . . Known Exits Taken 1 | . . . 1 . . Unknown Exits Taken 4 | 1 1 1 . 1 . Scrap Searched 2 | . . 1 . 1 . Spaces Dug . | . . . . . . Terrain Destroyed 67 | . 17 . . . 50 Melee . | . . . . . . Projectile . | . . . . . . AOE 67 | . 17 . . . 50 Terrain Rammed . | . . . . . . Walls Destroyed . | . . . . . . Machines Disabled . | . . . . . . Actions | -11 -10 -10 -10 -9 -8 --------- Run | Yrd Mat Min Exi Min Mat Total 2092 | . 873 298 338 184 399 Wait 234 | . 209 . . 17 8 Move 1662 | . 554 289 328 162 329 Hop . | . . . . . . Pick Up 32 | . 9 3 1 1 18 Fast Attach 17 | . 16 . . . 1 Attach 9 | . 2 . . . 7 Detach 6 | . 5 . . . 1 Swap 16 | . 7 1 3 . 5 Drop 19 | . 6 3 1 1 8 Fire 83 | . 59 . . 2 22 Melee 5 | . . . 5 . . Ram . | . . . . . . Kick 1 | . 1 . . . . Crush 8 | . 5 2 . 1 . Escape Stasis . | . . . . . . Rewire . | . . . . . . Trap . | . . . . . . Miscellaneous . | . . . . . . Route ------- -11/Scrapyard -10/Materials (discovered 5 exits: [*Mat x3] / *Min x2) -10/Mines (discovered 2 exits: [*Mat] / *Exi) -10/Exiles (discovered 2 exits: *Min x2) -9/Mines (discovered 2 exits: *Mat x2) -8/Materials (discovered 1 exit: [*Fac]) History --------- Turn | Location | Event 1 | -11/Scrapyard | Discovered new exit (range 0) 1 | -11/Scrapyard | Entered Materials 86 | -10/Materials | Discovered new exit (range 13) 314 | -10/Materials | Build established: Mutant 395 | -10/Materials | Discovered new exit (range 8) 465 | -10/Materials | Discovered new exit (range 16) 578 | -10/Materials | Repaired Lgt. Treads 605 | -10/Materials | Repaired Lgt. Cannon 633 | -10/Materials | Repaired Assault Rifle 714 | -10/Materials | Discovered new exit (range 7) 1045 | -10/Materials | Discovered new exit (range 9) 1104 | -10/Materials | Learned location of 2 exits from Subcaves 1180 | -10/Materials | Learned Storage terminal intel 1204 | -10/Materials | Learned Storage trap positions 1269 | -10/Materials | Learned 4 Subcaves zone layouts 1279 | -10/Materials | Entered Mines 1577 | -10/Mines | Received a Rocket Launcher from a helpful Derelict 1614 | -10/Mines | Discovered new exit (range 12) 1635 | -10/Mines | Assisted by bots powering up and referring to "LRC-V3" 1716 | -10/Mines | Assembled infested the area 1721 | -10/Mines | Assisted by a Guerilla fighting off Assembled 1737 | -10/Mines | Deemed a non-threat by the Exiles lab entrance 1737 | -10/Mines | Discovered new exit (range 5) 1750 | -10/Mines | Entered Exiles 1750 | -10/Exiles | Accompanied by 3 allies 1751 | -10/Exiles | Identified exit to Mines 1794 | -10/Exiles | Met 8R-AWN 1821 | -10/Exiles | Met EX-HEX 1869 | -10/Exiles | Met EX-BIN 1920 | -10/Exiles | Met EX-DEC 1928 | -10/Exiles | Learned location of Zion (-6) 2074 | -10/Exiles | Aligned with FarCom system 2076 | -10/Exiles | Given EX-Vault access code 2114 | -10/Exiles | Opened EX-Vault 2131 | -10/Exiles | Found Gui. Plasma Cannon 2164 | -10/Exiles | Warned to stay clear of 0b10 Research branches 2289 | -10/Exiles | Left Exiles lab with Gui. Plasma Cannon 2289 | -10/Exiles | Entered Mines 2289 | -9/Mines | Accompanied by 3 allies 2429 | -9/Mines | Discovered new exit (range 5) 2557 | -9/Mines | Discovered new exit (range 7) 2558 | -9/Mines | Met a Derelict testing a Signal Generator 2575 | -9/Mines | Entered Materials 2575 | -8/Materials | Accompanied by 4 allies 2575 | -8/Materials | Evolved 4 slots: Propulsion x1, Utility x2, Weapon x1 2866 | -8/Materials | Build established: Skirmisher 2959 | -8/Materials | Destroyed 7 combat bots 2959 | -8/Materials | Lost 3 parts (1n1u1w) 3133 | -8/Materials | Discovered new exit (range 16) 3205 | -8/Materials | Self-destructed Last Messages --------------- 03100_ Acquired Imp. Heat Sink. 03102_ R-06 Scavenger collects Aluminum Leg. 03110_ Y-45 Defender destroyed. 03111_ R-06 Scavenger collects Particle Gun. 03114_ R-06 Scavenger collects Lgt. Nuclear Core. 03127_ A-02 Transporter destroyed. 03133_ EXIT=FOUND 03138_ Dropped Lgt. Treads. 03151_ Acquired Adv. Visual Processing Unit. 03152_ Dropped EM Pulse Gun. 03152_ Acquired EM Pulse Gun. 03153_ Dropped EM Pulse Gun. 03156_ Acquired Lgt. Treads. 03159_ Acquired Cryofiber Web. 03171_ Acquired 10 matter. 03183_ Dropped Lgt. Cannon. 03184_ Acquired Arm. Treads. 03192_ ALERT: Alarm triggered, dispatching investigation squad. 03200_ ALERT: Garrison Access compromised, dispatching multiple assault carriers. Map ----- +----------------------------------------------------+ | ????????######## ### # """# | | ????????### # # """# | | ?????????## """ # ### # | | ?????????## """ # ### # | | ?????????## """ # ##+##### | | ?????????## """ + | | ?????????## """ # ######## | | ???????????? # # ###### | | ???????????? # ######## | | ?????###### #% ## ! | | ?????############### ## | | ?????## ####### % # | | ?????## ! # | | ?????## % + | | ?????## %** # "" | | ?????## ####### # "" | | ?????### ############## "" | | ?????### ###???######## | | ######## ###########?######## | | ######## ###########?######## | | # ## ## ##????????? | | # """ ## ## ##????????? | | # "G g## ## ##????????? | | # "" %# # """"" ##????????? | | # g!%[# # """"" ##????????? | | # g=@ =% + """"" ##????????? | | # # # ##????????? | | # """ #=/= # ##????????? | | # """ ##%/ ## [[ ##????????? | | # """ ##/! ## !! ##????????? | | # ## ## ##????????? | | # ## ###########????????? | | ######## ###########????????? | | ######## ##?????????????????? | | ??????## # ?????????????????? | | ??????## # ?????????????????? | | ??????## # ?????????????????? | | ??????## # ?????????????????? | | ??????## + ?????????????????? | | ??????## # ?????????????????? | | ??????## < # ?????????????????? | | ??????## # ?????????????????? | | ???????#####??????????????????? | | ???????#####??????????????????? | | ??????????????????????????????? | | ??????????????????????????????? | | ??????????????????????????????? | | ??????????????????????????????? | | ??????????????????????????????? | | ??????????????????????????????? | +----------------------------------------------------+ Best States ------------- Heat Dissipation 41 Energy Generation 10 Energy Capacity 250 Matter Stores 300 Matter Capacity 300 Sight Range 16 Terrain Scan Density 10 Armor Coverage 150 Evasion (%) 55 Recoil Reduction 3 Item Schematics ----------------- None Robot Schematics ------------------ None Fabricated ------------ Nothing Repaired ---------- Lgt. Treads | 50% | -10/Materials Lgt. Cannon | 54% | -10/Materials Assault Rifle | 43% | -10/Materials Studied --------- None Alien Tech Used ----------------- None Achievements -------------- None Challenges ------------ None Game ------ Seed IonicTripodWheel Manual? 0 Play Time 00:23:37 Cumulative 469.9 hours Start 2025.11.29 @ 13:30:01 End 2025.11.29 @ 14:13:36 Sessions 1 Manual Loads 0 Difficulty Rogue Special Mode None Game No. 297 Rogue 297 Adventurer 0 Explorer 0 Win Type - Total 33 Types 26/1/4/2/0/0/0/0/0/0 Lore% 91 Gallery% 82 Achievement% 52 Wizard Run 0 Options --------- Layout 0 ASCII 0 Keyboard 1 Movement Arrows Keybinds 0 Fullscreen 2 Font 18/Terminus Map View 76x50 Zoom Use 0% Tactical HUD 1 Map Filters NONE Filters NONE Steam X RUN: 423386ec-7a81-4c29-8efb-c75da42f9253